lending/lending_fUSD_20250114
["ID","MTS","AMOUNT","RATE_DAILY","PERIOD"]
[348960939,1736895036168,-530.74,0.00011095,2]
[348960940,1736895036179,-625.97,0.00011095,2]
[348960941,1736895036188,-500.0,0.00011095,2]
[348960942,1736895036198,-500.0,0.00011095,2]
[348960943,1736895036209,-607.79,0.00011272,2]
[348960944,1736895036219,-513.67,0.00011272,2]
[348960945,1736895036228,-500.0,0.00011272,2]
[348960946,1736895036240,-862.59,0.00011272,2]
[348960947,1736895036249,-500.0,0.00011272,2]
[348960948,1736895036260,-506.08,0.00011272,2]
[348960949,1736895036270,-513.84,0.00011272,2]
[348960950,1736895036280,-500.0,0.00011272,2]
[348960951,1736895036290,-897.93,0.00011272,2]
[348960952,1736895036300,-576.57,0.00011272,2]
[348960953,1736895036309,-1399.72,0.00011272,2]
[348960954,1736895036319,-500.0,0.00011272,2]
[348960955,1736895036328,-1516.18,0.00011272,2]
[348960956,1736895036338,-1482.16,0.00011272,2]
[348960957,1736895036348,-1040.71,0.00011272,2]
[348960958,1736895036357,-683.12,0.00011272,2]
[348960959,1736895036368,-853.39,0.00011272,2]
[348960960,1736895036379,-1729.21,0.00011272,2]
[348960961,1736895036389,-500.0,0.00011272,2]
[348960962,1736895036398,-672.592347,0.00011272,2]
[348960963,1736895036408,-672.61,0.00011272,2]
[348960964,1736895036418,-600.42,0.00011272,2]
[348960965,1736895036427,-691.31,0.00011272,2]
[348960966,1736895036437,-2629.2,0.00011272,2]
[348960967,1736895036446,-580.927481,0.00011273,2]
[348960968,1736895036456,-695.09,0.00011273,2]
[348960969,1736895036466,-500.0,0.00011273,2]
[348960970,1736895036475,-558.4,0.00011273,2]
[348960971,1736895036485,-500.0,0.00011273,2]
[348960972,1736895036495,-500.0,0.00011273,2]
[348960973,1736895036505,-500.0,0.00011273,2]
[348960974,1736895036515,-500.0,0.00011273,2]
[348960975,1736895036526,-500.0,0.00011273,2]
[348960976,1736895036536,-500.0,0.00011273,2]
[348960977,1736895036546,-500.0,0.00011273,2]
[348960978,1736895036555,-500.0,0.00011273,2]
[348960979,1736895036566,-500.0,0.00011273,2]
[348960980,1736895036577,-500.0,0.00011273,2]
[348960981,1736895036586,-500.0,0.00011273,2]
[348960982,1736895036596,-2389.01,0.00011273,2]
[348960983,1736895036605,-500.0,0.00011273,2]
[348960984,1736895036615,-500.0,0.00011273,2]
[348960985,1736895036625,-500.0,0.00011273,2]
[348960986,1736895036634,-500.0,0.00011273,2]
[348960987,1736895036644,-500.0,0.00011273,2]
[348960988,1736895036655,-500.0,0.00011273,2]
[348960989,1736895036664,-500.0,0.00011273,2]
[348960990,1736895036674,-1032.96,0.00011273,2]
[348960991,1736895036683,-500.0,0.00011273,2]
[348960992,1736895036692,-500.0,0.00011273,2]
[348960993,1736895036701,-277.28468808,0.00011273,2]
[348960994,1736895036710,-536.9,0.00011273,2]
[348960995,1736895036719,-500.0,0.00011273,2]
[348960996,1736895036729,-500.0,0.00011273,2]
[348960997,1736895036738,-500.0,0.00011273,2]
[348960998,1736895036749,-500.0,0.00011273,2]
[348960999,1736895036760,-543.38,0.00011273,2]
[348961000,1736895036772,-500.0,0.00011273,2]
[348961001,1736895036782,-500.0,0.00011273,2]
[348961002,1736895036792,-500.0,0.00011273,2]
[348961003,1736895036802,-500.0,0.00011273,2]
[348961004,1736895036813,-669.46,0.00011273,2]
[348961005,1736895036822,-500.0,0.00011273,2]
[348961006,1736895036832,-500.0,0.00011273,2]
[348961007,1736895036842,-500.0,0.00011273,2]
[348961008,1736895036853,-500.0,0.00011273,2]
[348961009,1736895036864,-500.0,0.00011273,2]
[348961010,1736895036875,-500.0,0.00011273,2]
[348961011,1736895036884,-500.0,0.00011273,2]
[348961012,1736895036894,-500.0,0.00011273,2]
[348961013,1736895036904,-500.0,0.00011273,2]
[348961014,1736895036914,-2198.88,0.00011273,2]
[348961015,1736895036925,-515.67,0.00011273,2]
[348961016,1736895036935,-500.0,0.00011273,2]
[348961017,1736895036949,-500.69,0.00011273,2]
[348961018,1736895036958,-500.0,0.00011273,2]
[348961019,1736895036968,-500.0,0.00011273,2]
[348961020,1736895036978,-1015.66,0.00011273,2]
[348961021,1736895036987,-500.0,0.00011273,2]
[348961022,1736895036996,-518.3,0.00011273,2]
[348961023,1736895037006,-500.0,0.00011273,2]
[348961024,1736895037015,-1221.54,0.00011273,2]
[348961025,1736895037023,-727.81,0.00011273,2]
[348961026,1736895037032,-500.0,0.00011273,2]
[348961027,1736895037042,-500.0,0.00011273,2]
[348961028,1736895037051,-689.41,0.00011273,2]
[348961029,1736895037059,-500.0,0.00011273,2]
[348961030,1736895037069,-500.0,0.00011273,2]
[348961031,1736895037078,-500.0,0.00011273,2]
[348961032,1736895037090,-800.98,0.00011273,2]
[348961033,1736895037102,-500.0,0.00011273,2]
[348961034,1736895037111,-500.0,0.00011273,2]
[348961035,1736895037120,-500.0,0.00011273,2]
[348961036,1736895037129,-500.0,0.00011273,2]
[348961037,1736895037139,-500.0,0.00011273,2]
[348961038,1736895037148,-500.0,0.00011273,2]
[348961039,1736895037158,-500.0,0.00011273,2]
[348961040,1736895037167,-1426.02,0.00011273,2]
[348961041,1736895037176,-612.58,0.00011273,2]
[348961042,1736895037187,-500.0,0.00011273,2]
[348961043,1736895037196,-822.52,0.00011273,2]
[348961044,1736895037205,-2673.07,0.00011273,2]
[348961045,1736895037214,-500.0,0.00011273,2]
[348961046,1736895037223,-500.0,0.00011273,2]
[348961047,1736895037232,-500.0,0.00011273,2]
[348961048,1736895037241,-500.0,0.00011273,2]
[348961049,1736895037250,-500.0,0.00011273,2]
[348961050,1736895037259,-2019.66,0.00011273,2]
[348961051,1736895037268,-1918.76,0.00011273,2]
[348961052,1736895037277,-571.69,0.00011273,2]
[348961053,1736895037286,-2387.2,0.00011273,2]
[348961054,1736895037295,-500.0,0.00011273,2]
[348961055,1736895037304,-500.0,0.00011273,2]
[348961056,1736895037314,-506.69,0.00011273,2]
[348961057,1736895037323,-1667.55582768,0.00011279,2]
[348961058,1736895037332,-328.03,0.00011281,2]
[348961059,1736895037342,-3479.29,0.00011281,2]
[348961060,1736895037351,-150.99,0.00011281,2]
[348961061,1736895037360,-20848.63,0.00011281,2]
[348961062,1736895037372,-161.0,0.00011289,2]
[348961063,1736895037380,-420.0,0.00011296,2]
[348961064,1736895037390,-1108.32,0.00011307,2]
[348961065,1736895037399,-500.0,0.00011307,2]
[348961066,1736895037409,-859.54,0.00011363,2]
[348961067,1736895037418,-500.0,0.00011363,2]
[348961068,1736895037427,-1076.59,0.00011365,2]
[348961069,1736895037436,-500.0,0.00011365,2]
[348961071,1736895037445,-1000.0,0.00011365,2]
[348961072,1736895037455,-612.99,0.00011365,2]
[348961073,1736895037464,-500.0,0.00011365,2]
[348961074,1736895037473,-1583.55,0.00011365,2]
[348961075,1736895037482,-853.81,0.00011365,2]
[348961076,1736895037492,-7517.49277007,0.00011366,2]
[348961077,1736895037506,-500.0,0.00011368,2]
[348961078,1736895037515,-1043.54,0.00011368,2]
[348961079,1736895037525,-553.0,0.00011368,2]
[348961080,1736895037535,-1938.57,0.00011368,2]
[348961081,1736895037544,-645.22,0.00011368,2]
[348961082,1736895037554,-1286.98,0.00011368,2]
[348961083,1736895037563,-3681.02,0.00011368,2]
[348961084,1736895037575,-515.2,0.00011368,2]
[348961085,1736895037584,-696.83,0.00011368,2]
[348961086,1736895037594,-500.0,0.00011368,2]
[348961087,1736895037603,-1126.78,0.00011368,2]
[348961088,1736895037614,-500.0,0.00011368,2]
[348961089,1736895037623,-2457.45,0.00011368,2]
[348961090,1736895037633,-730.3,0.00011368,2]
[348961091,1736895037643,-500.0,0.00011368,2]
[348961092,1736895037653,-1114.56,0.00011368,2]
[348961093,1736895037663,-895.5,0.00011368,2]
[348961094,1736895037673,-500.0,0.00011369,2]
[348961095,1736895037682,-500.0,0.00011369,2]
[348961096,1736895037692,-587.62265698,0.00011369,2]
[348961097,1736895037701,-500.0,0.00011369,2]
[348961098,1736895037711,-500.0,0.00011369,2]
[348961099,1736895037720,-500.0,0.00011369,2]
[348961100,1736895037730,-500.0,0.00011369,2]
[348961101,1736895037739,-501.64,0.00011369,2]
[348961102,1736895037749,-500.0,0.00011369,2]
[348961103,1736895037759,-500.0,0.00011369,2]
[348961104,1736895037768,-500.0,0.00011369,2]
[348961105,1736895037778,-500.0,0.00011369,2]
[348961106,1736895037787,-513.52,0.00011369,2]
[348961107,1736895037797,-605.02,0.00011369,2]
[348961108,1736895037806,-500.0,0.00011369,2]
[348961109,1736895037816,-500.0,0.00011369,2]
[348961110,1736895037826,-500.0,0.00011369,2]
[348961111,1736895037835,-630.29,0.00011369,2]
[348961112,1736895037845,-560.15,0.00011369,2]
[348961113,1736895037854,-500.0,0.00011369,2]
[348961114,1736895037863,-500.0,0.00011369,2]
[348961115,1736895037873,-500.0,0.00011369,2]
[348961116,1736895037882,-500.0,0.00011369,2]
[348961117,1736895037891,-500.0,0.00011369,2]
[348961118,1736895037901,-500.0,0.00011369,2]
[348961119,1736895037911,-500.0,0.00011369,2]
[348961121,1736895037920,-507.66,0.00011369,2]
[348961123,1736895037929,-500.0,0.00011369,2]
[348961124,1736895037939,-500.0,0.00011369,2]
[348961126,1736895037948,-500.0,0.00011369,2]
[348961127,1736895037958,-500.0,0.00011369,2]
[348961128,1736895037967,-500.0,0.00011369,2]
[348961129,1736895037976,-594.92,0.00011369,2]
[348961130,1736895037986,-500.0,0.00011369,2]
[348961131,1736895037995,-530.74,0.00011369,2]
[348961132,1736895038004,-625.97,0.00011369,2]
[348961134,1736895038014,-500.0,0.00011369,2]
[348961136,1736895038023,-500.0,0.00011369,2]
[348961138,1736895038032,-1000.0,0.00011392,2]
[348961140,1736895038042,-429.93842545,0.00011503,2]
[348961142,1736895038052,-437.56,0.00011507,2]
[348961144,1736895038062,-195.51,0.00011507,2]
[348961145,1736895038071,-500.0,0.00011521,2]
[348961146,1736895038081,-607.79,0.00011546,2]
[348961147,1736895038092,-513.67,0.00011546,2]
[348961148,1736895038102,-500.0,0.00011546,2]
[348961149,1736895038111,-862.59,0.00011546,2]
[348961150,1736895038121,-500.0,0.00011546,2]
[348961152,1736895038131,-506.08,0.00011546,2]
[348961154,1736895038140,-513.84,0.00011546,2]
[348961156,1736895038150,-500.0,0.00011546,2]
[348961158,1736895038159,-897.93,0.00011546,2]
[348961160,1736895038169,-576.57,0.00011546,2]
[348961162,1736895038179,-1399.72,0.00011546,2]
[348961163,1736895038189,-500.0,0.00011546,2]
[348961164,1736895038200,-1516.18,0.00011546,2]
[348961165,1736895038210,-1482.16,0.00011546,2]
[348961166,1736895038222,-1040.71,0.00011546,2]
[348961167,1736895038232,-683.12,0.00011546,2]
[348961168,1736895038244,-853.39,0.00011546,2]
[348961169,1736895038255,-1729.21,0.00011546,2]
[348961170,1736895038266,-500.0,0.00011546,2]
[348961171,1736895038277,-672.592347,0.00011546,2]
[348961172,1736895038287,-672.61,0.00011546,2]
[348961173,1736895038298,-600.42,0.00011546,2]
[348961174,1736895038308,-691.31,0.00011546,2]
[348961175,1736895038319,-2629.2,0.00011546,2]
[348961176,1736895038330,-580.927481,0.00011547,2]
[348961177,1736895038340,-695.09,0.00011547,2]
[348961178,1736895038350,-500.0,0.00011547,2]
[348961179,1736895038360,-558.4,0.00011547,2]
[348961180,1736895038372,-500.0,0.00011547,2]
[348961181,1736895038382,-500.0,0.00011547,2]
[348961182,1736895038392,-500.0,0.00011547,2]
[348961183,1736895038401,-500.0,0.00011547,2]
[348961184,1736895038411,-500.0,0.00011547,2]
[348961185,1736895038421,-500.0,0.00011547,2]
[348961186,1736895038431,-500.0,0.00011547,2]
[348961187,1736895038440,-500.0,0.00011547,2]
[348961188,1736895038450,-500.0,0.00011547,2]
[348961189,1736895038461,-500.0,0.00011547,2]
[348961190,1736895038470,-500.0,0.00011547,2]
[348961191,1736895038480,-2389.01,0.00011547,2]
[348961192,1736895038491,-500.0,0.00011547,2]
[348961193,1736895038501,-500.0,0.00011547,2]
[348961194,1736895038511,-500.0,0.00011547,2]
[348961195,1736895038522,-500.0,0.00011547,2]
[348961196,1736895038533,-500.0,0.00011547,2]
[348961197,1736895038543,-500.0,0.00011547,2]
[348961198,1736895038555,-500.0,0.00011547,2]
[348961199,1736895038567,-1032.96,0.00011547,2]
[348961200,1736895038576,-500.0,0.00011547,2]
[348961201,1736895038586,-500.0,0.00011547,2]
[348961202,1736895038596,-536.9,0.00011547,2]
[348961203,1736895038606,-500.0,0.00011547,2]
[348961204,1736895038616,-500.0,0.00011547,2]
[348961205,1736895038626,-500.0,0.00011547,2]
[348961206,1736895038636,-244.24312888,0.00011547,2]
[348961207,1736895038647,-543.38,0.00011547,2]
[348961208,1736895038657,-500.0,0.00011547,2]
[348961209,1736895038666,-328.39689333,0.00011547,2]
[348961210,1736895038677,-500.0,0.00011547,2]
[348961211,1736895038687,-500.0,0.00011547,2]
[348961212,1736895038698,-669.46,0.00011547,2]
[348961213,1736895038710,-500.0,0.00011547,2]
[348961214,1736895038719,-500.0,0.00011547,2]
[348961215,1736895038729,-500.0,0.00011547,2]
[348961216,1736895038740,-500.0,0.00011547,2]
[348961217,1736895038750,-500.0,0.00011547,2]
[348961218,1736895038759,-500.0,0.00011547,2]
[348961219,1736895038768,-500.0,0.00011547,2]
[348961220,1736895038778,-500.0,0.00011547,2]
[348961221,1736895038787,-500.0,0.00011547,2]
[348961222,1736895038797,-2198.88,0.00011547,2]
[348961223,1736895038807,-515.67,0.00011547,2]
[348961224,1736895038816,-500.0,0.00011547,2]
[348961225,1736895038827,-500.69,0.00011547,2]
[348961226,1736895038836,-500.0,0.00011547,2]
[348961227,1736895038846,-500.0,0.00011547,2]
[348961228,1736895038855,-1015.66,0.00011547,2]
[348961229,1736895038865,-500.0,0.00011547,2]
[348961230,1736895038874,-518.3,0.00011547,2]
[348961231,1736895038884,-500.0,0.00011547,2]
[348961232,1736895038893,-1221.54,0.00011547,2]
[348961233,1736895038902,-727.81,0.00011547,2]
[348961234,1736895038911,-500.0,0.00011547,2]
[348961235,1736895038921,-500.0,0.00011547,2]
[348961236,1736895038931,-689.41,0.00011547,2]
[348961237,1736895038940,-500.0,0.00011547,2]
[348961238,1736895038950,-500.0,0.00011547,2]
[348961239,1736895038959,-500.0,0.00011547,2]
[348961240,1736895038969,-800.98,0.00011547,2]
[348961241,1736895038978,-500.0,0.00011547,2]
[348961242,1736895038989,-500.0,0.00011547,2]
[348961243,1736895038998,-500.0,0.00011547,2]
[348961244,1736895039008,-500.0,0.00011547,2]
[348961245,1736895039017,-500.0,0.00011547,2]
[348961246,1736895039026,-500.0,0.00011547,2]
[348961247,1736895039036,-500.0,0.00011547,2]
[348961248,1736895039045,-1426.02,0.00011547,2]
[348961249,1736895039055,-612.58,0.00011547,2]
[348961250,1736895039066,-500.0,0.00011547,2]
[348961251,1736895039075,-822.52,0.00011547,2]
[348961252,1736895039085,-2673.07,0.00011547,2]
[348961253,1736895039098,-500.0,0.00011547,2]
[348961254,1736895039107,-500.0,0.00011547,2]
[348961255,1736895039117,-500.0,0.00011547,2]
[348961256,1736895039126,-500.0,0.00011547,2]
[348961257,1736895039136,-500.0,0.00011547,2]
[348961258,1736895039147,-2019.66,0.00011547,2]
[348961259,1736895039157,-1918.76,0.00011547,2]
[348961260,1736895039380,-571.69,0.00011547,2]
[348961261,1736895039390,-2387.2,0.00011547,2]
[348961262,1736895039401,-500.0,0.00011547,2]
[348961263,1736895039411,-506.69,0.00011547,2]
[348961264,1736895039420,-1108.32,0.00011581,2]
[348961265,1736895039431,-500.0,0.00011581,2]
[348961266,1736895039441,-859.54,0.00011637,2]
[348961268,1736895039450,-500.0,0.00011637,2]
[348961269,1736895039460,-1076.59,0.00011639,2]
[348961270,1736895039470,-500.0,0.00011639,2]
[348961271,1736895039480,-1000.0,0.00011639,2]
[348961272,1736895039489,-612.99,0.00011639,2]
[348961273,1736895039499,-500.0,0.00011639,2]
[348961274,1736895039508,-1583.55,0.00011639,2]
[348961275,1736895039518,-853.81,0.00011639,2]
[348961276,1736895039528,-500.0,0.00011642,2]
[348961277,1736895039538,-1043.54,0.00011642,2]
[348961278,1736895039547,-553.0,0.00011642,2]
[348961279,1736895039557,-1938.57,0.00011642,2]
[348961280,1736895039567,-645.22,0.00011642,2]
[348961281,1736895039577,-1286.98,0.00011642,2]
[348961282,1736895039587,-3681.02,0.00011642,2]
[348961283,1736895039596,-515.2,0.00011642,2]
[348961284,1736895039606,-696.83,0.00011642,2]
[348961285,1736895039616,-500.0,0.00011642,2]
[348961286,1736895039626,-1126.78,0.00011642,2]
[348961287,1736895039636,-500.0,0.00011642,2]
[348961288,1736895039646,-2457.45,0.00011642,2]
[348961289,1736895039656,-730.3,0.00011642,2]
[348961290,1736895039667,-500.0,0.00011642,2]
[348961291,1736895039677,-1114.56,0.00011642,2]
[348961292,1736895039687,-895.5,0.00011642,2]
[348961293,1736895039697,-500.0,0.00011643,2]
[348961294,1736895039707,-500.0,0.00011643,2]
[348961295,1736895039716,-500.0,0.00011643,2]
[348961296,1736895039727,-500.0,0.00011643,2]
[348961297,1736895039736,-500.0,0.00011643,2]
[348961298,1736895039746,-500.0,0.00011643,2]
[348961299,1736895039756,-500.0,0.00011643,2]
[348961300,1736895039766,-175.21652722,0.00011643,2]
[348961301,1736895039776,-500.0,0.00011643,2]
[348961302,1736895039786,-513.52,0.00011643,2]
[348961303,1736895039797,-605.02,0.00011643,2]
[348961304,1736895039807,-500.0,0.00011643,2]
[348961305,1736895039816,-500.0,0.00011643,2]
[348961306,1736895039826,-500.0,0.00011643,2]
[348961307,1736895039836,-630.29,0.00011643,2]
[348961308,1736895039846,-560.15,0.00011643,2]
[348961309,1736895039856,-500.0,0.00011643,2]
[348961310,1736895039865,-500.0,0.00011643,2]
[348961311,1736895039876,-500.0,0.00011643,2]
[348961312,1736895039885,-507.66,0.00011643,2]
[348961313,1736895039896,-500.0,0.00011643,2]
[348961314,1736895039906,-500.0,0.00011643,2]
[348961315,1736895039916,-500.0,0.00011643,2]
[348961316,1736895039926,-500.0,0.00011643,2]
[348961317,1736895039935,-594.92,0.00011643,2]
[348961318,1736895039946,-500.0,0.00011643,2]
[348961319,1736895039956,-530.74,0.00011643,2]
[348961320,1736895039968,-625.97,0.00011643,2]
[348961321,1736895039980,-500.0,0.00011643,2]
[348961322,1736895039990,-500.0,0.00011643,2]
[348961323,1736895040000,-438.01,0.00011644,2]
[348961324,1736895040010,-1667.55582768,0.00011659,2]
[348961325,1736895040020,-261.4084419,0.00011706,2]
[348961326,1736895040030,-3700.0,0.0001178,2]
[348961327,1736895040039,-1400.0,0.0001178,2]
[348961328,1736895040050,-500.0,0.0001178,2]
[348961329,1736895040062,-838.98919435,0.00011781,7]
[348961330,1736895040072,-73267.7751,0.0001181,2]
[348961331,1736895040083,-607.79,0.0001182,2]
[348961332,1736895040096,-513.67,0.0001182,2]
[348961333,1736895040106,-500.0,0.0001182,2]
[348961334,1736895040117,-862.59,0.0001182,2]
[348961335,1736895040126,-506.08,0.0001182,2]
[348961336,1736895040137,-513.84,0.0001182,2]
[348961337,1736895040147,-897.93,0.0001182,2]
[348961338,1736895040156,-576.57,0.0001182,2]
[348961339,1736895040165,-1399.72,0.0001182,2]
[348961340,1736895040175,-1516.18,0.0001182,2]
[348961341,1736895040184,-1482.16,0.0001182,2]
[348961342,1736895040193,-1040.71,0.0001182,2]
[348961343,1736895040203,-683.12,0.0001182,2]
[348961344,1736895040213,-853.39,0.0001182,2]
[348961345,1736895040222,-1729.21,0.0001182,2]
[348961346,1736895040232,-500.0,0.0001182,2]
[348961347,1736895040242,-672.592347,0.0001182,2]
[348961348,1736895040254,-672.61,0.0001182,2]
[348961349,1736895040265,-600.42,0.0001182,2]
[348961350,1736895040275,-691.31,0.0001182,2]
[348961352,1736895040284,-2629.2,0.0001182,2]
[348961354,1736895040293,-580.927481,0.00011821,2]
[348961356,1736895040302,-695.09,0.00011821,2]
[348961358,1736895040311,-500.0,0.00011821,2]
[348961360,1736895040321,-558.4,0.00011821,2]
[348961362,1736895040330,-500.0,0.00011821,2]
[348961364,1736895040339,-500.0,0.00011821,2]
[348961366,1736895040349,-500.0,0.00011821,2]
[348961368,1736895040358,-500.0,0.00011821,2]
[348961370,1736895040368,-500.0,0.00011821,2]
[348961371,1736895040378,-500.0,0.00011821,2]
[348961373,1736895040387,-500.0,0.00011821,2]
[348961374,1736895040397,-500.0,0.00011821,2]
[348961375,1736895040406,-500.0,0.00011821,2]
[348961376,1736895040416,-500.0,0.00011821,2]
[348961377,1736895040425,-500.0,0.00011821,2]
[348961378,1736895040434,-2389.01,0.00011821,2]
[348961379,1736895040443,-500.0,0.00011821,2]
[348961380,1736895040452,-500.0,0.00011821,2]
[348961381,1736895040461,-500.0,0.00011821,2]
[348961382,1736895040471,-500.0,0.00011821,2]
[348961383,1736895040481,-500.0,0.00011821,2]
[348961384,1736895040491,-500.0,0.00011821,2]
[348961385,1736895040500,-500.0,0.00011821,2]
[348961386,1736895040511,-1032.96,0.00011821,2]
[348961387,1736895040520,-500.0,0.00011821,2]
[348961388,1736895040530,-500.0,0.00011821,2]
[348961389,1736895040539,-536.9,0.00011821,2]
[348961390,1736895040549,-500.0,0.00011821,2]
[348961391,1736895040559,-543.38,0.00011821,2]
[348961392,1736895040569,-500.0,0.00011821,2]
[348961393,1736895040578,-500.0,0.00011821,2]
[348961394,1736895040587,-500.0,0.00011821,2]
[348961395,1736895040596,-500.0,0.00011821,2]
[348961396,1736895040606,-669.46,0.00011821,2]
[348961397,1736895040615,-500.0,0.00011821,2]
[348961398,1736895040624,-500.0,0.00011821,2]
[348961399,1736895040634,-500.0,0.00011821,2]
[348961400,1736895040643,-500.0,0.00011821,2]
[348961401,1736895040652,-500.0,0.00011821,2]
[348961402,1736895040662,-500.0,0.00011821,2]
[348961403,1736895040671,-500.0,0.00011821,2]
[348961404,1736895040680,-2198.88,0.00011821,2]
[348961405,1736895040689,-500.0,0.00011821,2]
[348961406,1736895040699,-515.67,0.00011821,2]
[348961407,1736895040708,-500.69,0.00011821,2]
[348961408,1736895040717,-500.0,0.00011821,2]
[348961409,1736895040726,-500.0,0.00011821,2]
[348961410,1736895040735,-1015.66,0.00011821,2]
[348961411,1736895040744,-500.0,0.00011821,2]
[348961412,1736895040753,-518.3,0.00011821,2]
[348961413,1736895040763,-500.0,0.00011821,2]
[348961414,1736895040772,-727.81,0.00011821,2]
[348961415,1736895040782,-1221.54,0.00011821,2]
[348961416,1736895040791,-500.0,0.00011821,2]
[348961417,1736895040800,-500.0,0.00011821,2]
[348961418,1736895040809,-689.41,0.00011821,2]
[348961419,1736895040818,-500.0,0.00011821,2]
[348961420,1736895040827,-500.0,0.00011821,2]
[348961421,1736895040836,-438.5765008,0.00011821,2]
[348961422,1736895040846,-500.0,0.00011821,2]
[348961423,1736895040855,-800.98,0.00011821,2]
[348961424,1736895040864,-500.0,0.00011821,2]
[348961425,1736895040874,-500.0,0.00011821,2]
[348961426,1736895040883,-500.0,0.00011821,2]
[348961427,1736895040892,-500.0,0.00011821,2]
[348961428,1736895040901,-500.0,0.00011821,2]
[348961429,1736895040910,-500.0,0.00011821,2]
[348961430,1736895040920,-1426.02,0.00011821,2]
[348961431,1736895040929,-612.58,0.00011821,2]
[348961432,1736895040938,-500.0,0.00011821,2]
[348961433,1736895040947,-822.52,0.00011821,2]
[348961434,1736895040956,-2673.07,0.00011821,2]
[348961435,1736895040966,-500.0,0.00011821,2]
[348961436,1736895040975,-500.0,0.00011821,2]
[348961437,1736895040985,-500.0,0.00011821,2]
[348961438,1736895040994,-500.0,0.00011821,2]
[348961439,1736895041004,-500.0,0.00011821,2]
[348961440,1736895041014,-2019.66,0.00011821,2]
[348961441,1736895041025,-1918.76,0.00011821,2]
[348961442,1736895041035,-571.69,0.00011821,2]
[348961443,1736895041044,-2387.2,0.00011821,2]
[348961444,1736895041055,-506.69,0.00011821,2]
[348961445,1736895041065,-1108.32,0.00011855,2]
[348961446,1736895041075,-500.0,0.00011855,2]
[348961447,1736895041085,-365.76,0.00011881,2]
[348961448,1736895041096,-1101.54,0.0001191,2]
[348961449,1736895041106,-2097.27,0.0001191,2]
[348961450,1736895041115,-791.69,0.0001191,2]
[348961451,1736895041124,-629.42,0.0001191,2]
[348961452,1736895041134,-500.0,0.0001191,2]
[348961453,1736895041144,-737.52,0.0001191,2]
[348961454,1736895041153,-1147.39,0.0001191,2]
[348961455,1736895041163,-680.34,0.0001191,2]
[348961456,1736895041175,-3716.45,0.0001191,2]
[348961457,1736895041184,-1004.5,0.0001191,2]
[348961458,1736895041193,-1523.55,0.0001191,2]
[348961459,1736895041202,-933.6,0.0001191,2]
[348961460,1736895041211,-500.0,0.0001191,2]
[348961461,1736895041221,-626.9,0.0001191,2]
[348961462,1736895041230,-1675.91,0.0001191,2]
[348961463,1736895041239,-729.78,0.0001191,2]
[348961464,1736895041248,-859.54,0.00011911,2]
[348961465,1736895041262,-500.0,0.00011911,2]
[348961466,1736895041271,-1076.59,0.00011913,2]